fUST/lending_fUST_20250906
["ID","MTS","AMOUNT","RATE_DAILY","PERIOD"]
[383730976,1757103050170,-480.0,0.00015342,2]
[383730978,1757103050179,-480.0,0.00015342,2]
[383730980,1757103050190,-480.0,0.00015342,2]
[383730982,1757103050199,-1090.3,0.00015342,2]
[383730984,1757103050208,-2838.89,0.00015342,2]
[383730986,1757103050218,-1570.51,0.00015342,2]
[383730988,1757103050227,-620.07,0.00015342,2]
[383730990,1757103050236,-641.06,0.00015342,2]
[383730992,1757103050246,-480.0,0.00015342,2]
[383730994,1757103050255,-480.0,0.00015342,2]
[383730996,1757103050265,-302.0,0.00015342,2]
[383730998,1757103050275,-1179.32,0.00015342,2]
[383731000,1757103050284,-633.15,0.00015342,2]
[383731002,1757103050293,-421.65023302,0.00015342,2]
[383731004,1757103050303,-480.0,0.00015342,2]
[383731006,1757103050312,-701.9,0.00015342,2]
[383731008,1757103050322,-777.67,0.00015342,2]
[383731010,1757103050331,-3459.85,0.00015342,2]
[383731012,1757103050340,-666.07,0.00015342,2]
[383731014,1757103050350,-1435.86,0.00015342,2]
[383731016,1757103050360,-480.0,0.00015342,2]
[383731018,1757103050370,-687.92,0.00015342,2]
[383731020,1757103050379,-626.27,0.00015342,2]
[383731022,1757103050388,-665.9,0.00015342,2]
[383731024,1757103050398,-640.34,0.00015342,2]
[383731026,1757103050407,-790.66,0.00015342,2]
[383731028,1757103050417,-1666.92,0.00015342,2]
[383731030,1757103050426,-480.0,0.00015342,2]
[383731032,1757103050435,-480.0,0.00015342,2]
[383731034,1757103050445,-2180.69,0.00015342,2]
[383731036,1757103050455,-7203.67,0.00015342,2]
[383731038,1757103050464,-1225.97,0.00015342,2]
[383731040,1757103050473,-431.70692136,0.00015342,2]
[383731042,1757103050483,-480.0,0.00015342,2]
[383731044,1757103050492,-1428.8,0.00015342,2]
[383731046,1757103050502,-1108.64,0.00015342,2]
[383731048,1757103050511,-865.75,0.00015342,2]
[383731050,1757103050521,-4093.04,0.00015342,2]
[383731052,1757103050530,-534.04,0.00015342,2]
[383731054,1757103050539,-611.61,0.00015342,2]
[383731056,1757103050548,-480.0,0.00015342,2]
[383731058,1757103050558,-555.37,0.00015342,2]
[383731060,1757103050567,-480.0,0.00015342,2]
[383731062,1757103050577,-2005.54,0.00015342,2]
[383731064,1757103050586,-695.85,0.00015342,2]
[383731066,1757103050597,-641.0,0.00015342,2]
[383731067,1757103050606,-157.0,0.00015342,2]
[383731070,1757103050616,-500.0,0.00015342,2]
[383731071,1757103050625,-674.5,0.00015342,2]
[383731073,1757103050635,-2484.53,0.00015342,2]
[383731075,1757103050644,-1101.11,0.00015342,2]
[383731077,1757103050654,-480.0,0.00015342,2]
[383731079,1757103050663,-698.74,0.00015342,2]
[383731081,1757103050673,-480.0,0.00015342,2]
[383731083,1757103050682,-1021.02,0.00015342,2]
[383731085,1757103050692,-480.0,0.00015342,2]
[383731087,1757103050701,-489.39,0.00015342,2]
[383731089,1757103050710,-499.95,0.00015342,2]
[383731091,1757103050720,-751.81,0.00015342,2]
[383731093,1757103050730,-1850.07,0.00015342,2]
[383731095,1757103050739,-480.0,0.00015342,2]
[383731097,1757103050748,-480.0,0.00015342,2]
[383731099,1757103050758,-480.0,0.00015342,2]
[383731101,1757103050767,-480.0,0.00015342,2]
[383731103,1757103050777,-480.0,0.00015342,2]
[383731105,1757103050786,-689.34,0.00015342,2]
[383731107,1757103050795,-934.43,0.00015342,2]
[383731109,1757103050805,-480.0,0.00015342,2]
[383731111,1757103050814,-2351.15,0.00015342,2]
[383731113,1757103050823,-151.0,0.00015342,2]
[383731115,1757103050832,-1182.5,0.00015342,2]
[383731117,1757103050842,-598.75,0.00015342,2]
[383731119,1757103050851,-720.0,0.00015368,2]
[383731121,1757103050861,-1500.0,0.00015368,2]
[383731123,1757103050875,-639.37136977,0.00015368,2]
[383731125,1757103050885,-194.29023146,0.00015368,2]
[383731127,1757103050895,-187.78006525,0.00015508,2]
[383731129,1757103050904,-500.0,0.00015512,2]
[383731131,1757103050914,-500.0,0.00015512,2]
[383731133,1757103050924,-500.0,0.00015512,2]
[383731135,1757103050933,-500.0,0.00015512,2]
[383731137,1757103050944,-4394.46776352,0.00015527,7]
[383731139,1757103050953,-500.0,0.00015528,2]
[383731141,1757103050962,-500.0,0.00015536,2]
[383731143,1757103050971,-500.0,0.00015572,2]
[383731145,1757103050980,-302.3149549,0.00015616,2]
[383731147,1757103050989,-500.0,0.00015616,2]
[383731149,1757103050999,-392.9656838,0.00015616,2]
[383731151,1757103051008,-667.68511351,0.00015616,2]
[383731153,1757103051017,-2670.74045402,0.00015616,2]
[383731155,1757103051026,-6009.16602155,0.00015616,2]
[383731157,1757103051035,-706.16,0.00015616,2]
[383731159,1757103051044,-203.727708,0.00015616,2]
[383731161,1757103051054,-151.0,0.00015616,2]
[383731163,1757103051063,-530.48,0.00015616,2]
[383731165,1757103051072,-482.0,0.00015616,2]
[383731167,1757103051081,-925.19877508,0.00015616,2]
[383731169,1757103051090,-712.11843619,0.00015616,2]
[383731171,1757103051100,-566.321741,0.00015616,2]
[383731172,1757103051109,-614.49,0.00015616,2]
[383731174,1757103051119,-480.0,0.00015616,2]
[383731176,1757103051129,-480.0,0.00015616,2]
[383731178,1757103051138,-480.0,0.00015616,2]
[383731181,1757103051148,-589.91,0.00015616,2]
[383731182,1757103051158,-480.0,0.00015616,2]
[383731196,1757103051276,-695.74,0.00015616,2]
[383731198,1757103051286,-513.79,0.00015616,2]
[383731200,1757103051296,-569.37,0.00015616,2]
[383731202,1757103051306,-818.23,0.00015616,2]
[383731204,1757103051315,-376.92,0.00015616,2]
[383731206,1757103051324,-1090.3,0.00015616,2]
[383731208,1757103051335,-2838.89,0.00015616,2]
[383731210,1757103051344,-1570.51,0.00015616,2]
[383731212,1757103051353,-620.07,0.00015616,2]
[383731214,1757103051363,-641.06,0.00015616,2]
[383731216,1757103051373,-480.0,0.00015616,2]
[383731218,1757103051383,-480.0,0.00015616,2]
[383731220,1757103051392,-1179.32,0.00015616,2]
[383731222,1757103051402,-2263.02167703,0.00015616,2]
[383731224,1757103051411,-522.91792345,0.00015616,2]
[383731226,1757103051420,-633.15,0.00015616,2]
[383731228,1757103051429,-701.9,0.00015616,2]
[383731230,1757103051439,-777.67,0.00015616,2]
[383731232,1757103051450,-3459.85,0.00015616,2]
[383731234,1757103051459,-666.07,0.00015616,2]
[383731236,1757103051469,-1435.86,0.00015616,2]
[383731238,1757103051478,-480.0,0.00015616,2]
[383731240,1757103051488,-687.92,0.00015616,2]
[383731242,1757103051497,-626.27,0.00015616,2]
[383731244,1757103051508,-665.9,0.00015616,2]
[383731246,1757103051517,-640.34,0.00015616,2]
[383731248,1757103051526,-790.66,0.00015616,2]
[383731250,1757103051536,-1666.92,0.00015616,2]
[383731252,1757103051546,-342.62,0.00015616,2]
[383731254,1757103051555,-2180.69,0.00015616,2]
[383731256,1757103051564,-281.34,0.00015616,2]
[383731258,1757103051574,-7203.67,0.00015616,2]
[383731260,1757103051584,-1225.97,0.00015616,2]
[383731262,1757103051593,-480.0,0.00015616,2]
[383731264,1757103051604,-1428.8,0.00015616,2]
[383731266,1757103051613,-1108.64,0.00015616,2]
[383731268,1757103051622,-865.75,0.00015616,2]
[383731270,1757103051631,-4093.04,0.00015616,2]
[383731272,1757103051641,-534.04,0.00015616,2]
[383731274,1757103051651,-611.61,0.00015616,2]
[383731276,1757103051660,-480.0,0.00015616,2]
[383731278,1757103051670,-555.37,0.00015616,2]
[383731279,1757103051678,-480.0,0.00015616,2]
[383731280,1757103051687,-2005.54,0.00015616,2]
[383731281,1757103051696,-695.85,0.00015616,2]
[383731282,1757103051705,-641.0,0.00015616,2]
[383731283,1757103051714,-674.5,0.00015616,2]
[383731284,1757103051723,-2484.53,0.00015616,2]
[383731285,1757103051731,-1101.11,0.00015616,2]
[383731286,1757103051740,-698.74,0.00015616,2]
[383731287,1757103051749,-442.55929819,0.00015616,2]
[383731288,1757103051758,-151.0,0.00015616,2]
[383731290,1757103051767,-1021.02,0.00015616,2]
[383731292,1757103051777,-480.0,0.00015616,2]
[383731294,1757103051786,-489.39,0.00015616,2]
[383731296,1757103051795,-499.95,0.00015616,2]
[383731298,1757103051804,-751.81,0.00015616,2]
[383731300,1757103051813,-1850.07,0.00015616,2]
[383731302,1757103051822,-480.0,0.00015616,2]
[383731304,1757103051831,-480.0,0.00015616,2]
[383731306,1757103051841,-480.0,0.00015616,2]
[383731308,1757103051851,-480.0,0.00015616,2]
[383731310,1757103051861,-151.0,0.00015616,2]
[383731312,1757103051874,-480.0,0.00015616,2]
[383731314,1757103051885,-689.34,0.00015616,2]
[383731316,1757103051894,-934.43,0.00015616,2]
[383731318,1757103051903,-575.41,0.00015616,2]
[383731320,1757103051915,-2351.15,0.00015616,2]
[383731322,1757103051924,-1182.5,0.00015616,2]
[383731324,1757103051934,-151.0,0.00015616,2]
[383731326,1757103051944,-598.75,0.00015616,2]
[383731328,1757103051956,-2000.0,0.00015616,2]
[383731330,1757103051966,-320.21011115,0.00015616,2]
[383731332,1757103051976,-1442.0,0.00015619,2]
[383731334,1757103051985,-1442.0,0.0001562,2]
[383731336,1757103051995,-1442.0,0.00015674,2]
[383731338,1757103052004,-1442.0,0.00015676,2]
[383731340,1757103052013,-953.0,0.00015701,2]
[383731341,1757103052022,-953.0,0.00015705,2]
[383731344,1757103052032,-1442.0,0.00015755,2]
[383731346,1757103052043,-1442.0,0.00015812,2]
[383731348,1757103052052,-953.0,0.00015823,2]
[383731350,1757103052061,-1442.0,0.00015831,2]
[383731352,1757103052070,-953.0,0.0001584,2]
[383731354,1757103052079,-1442.0,0.00015846,2]
[383731356,1757103052089,-151.0,0.00015846,2]
[383731358,1757103052098,-1442.0,0.00015846,2]
[383731359,1757103052107,-2500.0,0.00015864,2]
[383731362,1757103052117,-953.0,0.00015867,2]
[383731364,1757103052127,-953.0,0.0001587,2]
[383731366,1757103052136,-1000.0,0.0001587,2]
[383731368,1757103052145,-500.0,0.0001589,2]
[383731370,1757103052154,-706.16,0.0001589,2]
[383731372,1757103052164,-257.319223,0.0001589,2]
[383731374,1757103052173,-480.0,0.0001589,2]
[383731375,1757103052182,-482.0,0.0001589,2]
[383731378,1757103052192,-614.49,0.0001589,2]
[383731379,1757103052201,-480.0,0.0001589,2]
[383731382,1757103052211,-344.95,0.0001589,2]
[383731383,1757103052220,-589.91,0.0001589,2]
[383731386,1757103052229,-480.0,0.0001589,2]
[383731388,1757103052239,-695.74,0.0001589,2]
[383731390,1757103052248,-513.79,0.0001589,2]
[383731392,1757103052258,-569.37,0.0001589,2]
[383731393,1757103052267,-818.23,0.0001589,2]
[383731396,1757103052277,-1090.3,0.0001589,2]
[383731398,1757103052286,-2838.89,0.0001589,2]
[383731400,1757103052295,-1570.51,0.0001589,2]
[383731402,1757103052305,-151.0,0.0001589,2]
[383731404,1757103052314,-620.07,0.0001589,2]
[383731406,1757103052323,-203.635943,0.0001589,2]
[383731408,1757103052332,-203.635943,0.0001589,2]
[383731409,1757103052341,-641.06,0.0001589,2]
[383731412,1757103052351,-203.635943,0.0001589,2]
[383731414,1757103052361,-480.0,0.0001589,2]
[383731416,1757103052371,-480.0,0.0001589,2]
[383731418,1757103052381,-1179.32,0.0001589,2]
[383731420,1757103052390,-151.0,0.0001589,2]
[383731422,1757103052400,-633.15,0.0001589,2]
[383731424,1757103052409,-701.9,0.0001589,2]
[383731426,1757103052419,-777.67,0.0001589,2]
[383731428,1757103052428,-3459.85,0.0001589,2]
[383731430,1757103052437,-666.07,0.0001589,2]
[383731432,1757103052446,-1435.86,0.0001589,2]
[383731434,1757103052455,-687.92,0.0001589,2]
[383731436,1757103052464,-626.27,0.0001589,2]
[383731438,1757103052473,-665.9,0.0001589,2]
[383731440,1757103052483,-640.34,0.0001589,2]
[383731442,1757103052492,-790.66,0.0001589,2]
[383731444,1757103052501,-1666.92,0.0001589,2]
[383731446,1757103052510,-2180.69,0.0001589,2]
[383731448,1757103052521,-7203.67,0.0001589,2]
[383731450,1757103052530,-1225.97,0.0001589,2]
[383731452,1757103052539,-151.0,0.0001589,2]
[383731454,1757103052548,-480.0,0.0001589,2]
[383731456,1757103052557,-1428.8,0.0001589,2]
[383731458,1757103052566,-1108.64,0.0001589,2]
[383731460,1757103052576,-865.75,0.0001589,2]
[383731462,1757103052585,-4093.04,0.0001589,2]
[383731464,1757103052595,-534.04,0.0001589,2]
[383731466,1757103052604,-611.61,0.0001589,2]
[383731468,1757103052613,-480.0,0.0001589,2]
[383731470,1757103052623,-555.37,0.0001589,2]
[383731472,1757103052632,-480.0,0.0001589,2]
[383731474,1757103052642,-2005.54,0.0001589,2]
[383731476,1757103052651,-695.85,0.0001589,2]
[383731478,1757103052661,-641.0,0.0001589,2]
[383731480,1757103052670,-674.5,0.0001589,2]
[383731482,1757103052679,-2484.53,0.0001589,2]
[383731484,1757103052689,-1101.11,0.0001589,2]
[383731487,1757103052699,-698.74,0.0001589,2]
[383731489,1757103052708,-1021.02,0.0001589,2]
[383731491,1757103052718,-480.0,0.0001589,2]
[383731492,1757103052727,-499.95,0.0001589,2]
[383731495,1757103052737,-489.39,0.0001589,2]
[383731496,1757103052746,-751.81,0.0001589,2]
[383731499,1757103052755,-1850.07,0.0001589,2]
[383731501,1757103052765,-480.0,0.0001589,2]
[383731503,1757103052774,-480.0,0.0001589,2]
[383731505,1757103052783,-480.0,0.0001589,2]
[383731507,1757103052792,-480.0,0.0001589,2]
[383731508,1757103052802,-689.34,0.0001589,2]
[383731510,1757103052811,-934.43,0.0001589,2]
[383731513,1757103052821,-2351.15,0.0001589,2]
[383731515,1757103052830,-1182.5,0.0001589,2]
[383731517,1757103052840,-598.75,0.0001589,2]
[383731519,1757103052850,-1000.0,0.00015916,2]
[383731521,1757103052859,-3000.0,0.00016,2]
[383731523,1757103052872,-3000.0,0.0001601,2]
[383731525,1757103052881,-3000.0,0.0001602,2]
[383731527,1757103052891,-3000.0,0.0001603,2]
[383731529,1757103052900,-3000.0,0.0001604,2]
[383731531,1757103052913,-3000.0,0.0001605,2]
[383731533,1757103052922,-3000.0,0.0001606,2]
[383731535,1757103052931,-1077.00633324,0.0001606,2]
[383731537,1757103052941,-1000.0,0.0001606,2]
[383731539,1757103052951,-1000.0,0.0001606,2]
[383731540,1757103052961,-1000.0,0.0001606,2]
[383731542,1757103052971,-151.0,0.00016064,2]
[383731544,1757103052980,-151.0,0.00016064,2]
[383731546,1757103052989,-151.0,0.00016064,2]
[383731548,1757103052998,-253.890587,0.00016064,2]
[383731550,1757103053007,-151.0,0.00016064,2]
[383731552,1757103053017,-151.0,0.00016064,2]
[383731554,1757103053027,-953.0,0.00016067,2]
[383731556,1757103053036,-3000.0,0.0001607,2]
[383731558,1757103053047,-3000.0,0.0001608,2]
[383731560,1757103053056,-1000.0,0.00016084,2]
[383731562,1757103053066,-953.0,0.00016088,2]
[383731564,1757103053075,-3000.0,0.0001609,2]
[383731566,1757103053084,-3000.0,0.000161,2]
[383731568,1757103053094,-953.0,0.0001611,2]
[383731570,1757103053103,-3000.0,0.0001611,2]
[383731572,1757103053113,-953.0,0.00016115,2]
[383731574,1757103053123,-3000.0,0.0001612,2]
[383731576,1757103053133,-1000.0,0.0001612,2]
[383731578,1757103053143,-3000.0,0.0001613,2]
[383731581,1757103053152,-3000.0,0.0001614,2]
[383731582,1757103053161,-953.0,0.00016147,2]
[383731584,1757103053171,-3000.0,0.0001615,2]
[383731586,1757103053180,-3000.0,0.0001616,2]
[383731588,1757103053189,-500.0,0.00016164,2]
[383731590,1757103053199,-706.16,0.00016164,2]
[383731592,1757103053208,-480.0,0.00016164,2]
[383731595,1757103053218,-482.0,0.00016164,2]
[383731597,1757103053229,-614.49,0.00016164,2]
[383731599,1757103053238,-151.0,0.00016164,2]
[383731600,1757103053247,-151.0,0.00016164,2]
[383731602,1757103053256,-589.91,0.00016164,2]
[383731605,1757103053266,-480.0,0.00016164,2]
[383731606,1757103053275,-695.74,0.00016164,2]
[383731609,1757103053285,-513.79,0.00016164,2]
[383731610,1757103053294,-569.37,0.00016164,2]
[383731612,1757103053305,-818.23,0.00016164,2]
[383731614,1757103053315,-1090.3,0.00016164,2]
[383731616,1757103053324,-2838.89,0.00016164,2]
[383731618,1757103053334,-1570.51,0.00016164,2]
[383731620,1757103053343,-620.07,0.00016164,2]
[383731622,1757103053352,-641.06,0.00016164,2]
[383731624,1757103053362,-480.0,0.00016164,2]
[383731626,1757103053371,-480.0,0.00016164,2]
[383731628,1757103053381,-1179.32,0.00016164,2]
[383731630,1757103053390,-633.15,0.00016164,2]
[383731632,1757103053400,-701.9,0.00016164,2]
[383731634,1757103053409,-777.67,0.00016164,2]
[383731636,1757103053419,-3459.85,0.00016164,2]
[383731638,1757103053428,-666.07,0.00016164,2]
[383731640,1757103053437,-1435.86,0.00016164,2]
[383731642,1757103053447,-687.92,0.00016164,2]
[383731644,1757103053456,-626.27,0.00016164,2]
[383731646,1757103053465,-665.9,0.00016164,2]
[383731648,1757103053474,-640.34,0.00016164,2]
[383731662,1757103053611,-790.66,0.00016164,2]
[383731664,1757103053622,-1666.92,0.00016164,2]
[383731666,1757103053632,-2180.69,0.00016164,2]
[383731668,1757103053642,-7203.67,0.00016164,2]
[383731670,1757103053651,-1225.97,0.00016164,2]
[383731672,1757103053660,-480.0,0.00016164,2]
[383731674,1757103053670,-1428.8,0.00016164,2]
[383731676,1757103053679,-1108.64,0.00016164,2]
[383731678,1757103053689,-865.75,0.00016164,2]
[383731680,1757103053698,-4093.04,0.00016164,2]
[383731682,1757103053707,-534.04,0.00016164,2]
[383731684,1757103053717,-611.61,0.00016164,2]
[383731686,1757103053726,-480.0,0.00016164,2]
[383731688,1757103053735,-555.37,0.00016164,2]
[383731690,1757103053744,-2005.54,0.00016164,2]
[383731692,1757103053754,-695.85,0.00016164,2]
[383731694,1757103053763,-641.0,0.00016164,2]
[383731696,1757103053772,-674.5,0.00016164,2]
[383731698,1757103053782,-2484.53,0.00016164,2]
[383731700,1757103053791,-1101.11,0.00016164,2]
[383731702,1757103053801,-698.74,0.00016164,2]
[383731704,1757103053811,-151.0,0.00016164,2]
[383731706,1757103053820,-1021.02,0.00016164,2]
[383731708,1757103053830,-480.0,0.00016164,2]
[383731710,1757103053840,-499.95,0.00016164,2]
[383731712,1757103053849,-489.39,0.00016164,2]
[383731714,1757103053859,-751.81,0.00016164,2]
[383731716,1757103053871,-1850.07,0.00016164,2]
[383731717,1757103053882,-480.0,0.00016164,2]
[383731719,1757103053891,-480.0,0.00016164,2]
[383731721,1757103053900,-480.0,0.00016164,2]
[383731723,1757103053910,-151.0,0.00016164,2]
[383731725,1757103053920,-480.0,0.00016164,2]
[383731727,1757103053929,-689.34,0.00016164,2]
[383731729,1757103053939,-934.43,0.00016164,2]
[383731731,1757103053950,-2351.15,0.00016164,2]
[383731733,1757103053959,-151.0,0.00016164,2]
[383731735,1757103053969,-1182.5,0.00016164,2]
[383731737,1757103053978,-151.0,0.00016164,2]
[383731739,1757103053987,-598.75,0.00016164,2]
[383731741,1757103053997,-3354.818861,0.0001617,2]
[383731743,1757103054007,-953.0,0.00016198,2]
[383731745,1757103054016,-953.0,0.0001622,2]
[383731747,1757103054025,-953.0,0.00016222,2]
[383731748,1757103054035,-2089.58002212,0.00016268,2]
[383731750,1757103054044,-151.0,0.000164,2]
[383731752,1757103054054,-3000.0,0.00016412,2]
[383731754,1757103054063,-500.0,0.00016438,2]
[383731756,1757103054074,-500.0,0.00016438,2]
[383731758,1757103054083,-619.65175712,0.00016438,2]
[383731760,1757103054092,-185.57215406,0.00016438,2]
[383731762,1757103054103,-706.16,0.00016438,2]
[383731764,1757103054113,-151.092356,0.00016438,2]
[383731766,1757103054123,-480.0,0.00016438,2]
[383731768,1757103054132,-482.0,0.00016438,2]
[383731770,1757103054141,-614.49,0.00016438,2]
[383731772,1757103054151,-589.91,0.00016438,2]
[383731774,1757103054160,-480.0,0.00016438,2]
[383731776,1757103054170,-695.74,0.00016438,2]
[383731778,1757103054179,-513.79,0.00016438,2]
[383731780,1757103054189,-569.37,0.00016438,2]
[383731782,1757103054197,-818.23,0.00016438,2]
[383731784,1757103054207,-1090.3,0.00016438,2]
[383731786,1757103054216,-2838.89,0.00016438,2]
[383731788,1757103054226,-1570.51,0.00016438,2]
[383731790,1757103054235,-620.07,0.00016438,2]
[383731792,1757103054244,-641.06,0.00016438,2]
[383731794,1757103054253,-157.0,0.00016438,2]
[383731795,1757103054263,-480.0,0.00016438,2]
[383731798,1757103054272,-480.0,0.00016438,2]
[383731799,1757103054282,-1179.32,0.00016438,2]
[383731801,1757103054290,-192.07468,0.00016438,2]
[383731803,1757103054299,-633.15,0.00016438,2]
[383731805,1757103054309,-701.9,0.00016438,2]
[383731807,1757103054318,-777.67,0.00016438,2]
[383731809,1757103054327,-3459.85,0.00016438,2]
[383731811,1757103054336,-666.07,0.00016438,2]
[383731813,1757103054345,-1435.86,0.00016438,2]
[383731815,1757103054354,-687.92,0.00016438,2]
[383731817,1757103054364,-626.27,0.00016438,2]
[383731819,1757103054374,-665.9,0.00016438,2]
[383731821,1757103054383,-640.34,0.00016438,2]
[383731823,1757103054392,-790.66,0.00016438,2]
[383731825,1757103054403,-1666.92,0.00016438,2]
[383731827,1757103054412,-2180.69,0.00016438,2]
[383731829,1757103054422,-7203.67,0.00016438,2]
[383731831,1757103054432,-1225.97,0.00016438,2]
[383731833,1757103054441,-480.0,0.00016438,2]
[383731835,1757103054450,-1428.8,0.00016438,2]
[383731836,1757103054460,-1108.64,0.00016438,2]
[383731838,1757103054469,-865.75,0.00016438,2]
[383731840,1757103054479,-4093.04,0.00016438,2]
[383731842,1757103054488,-534.04,0.00016438,2]
[383731844,1757103054497,-611.61,0.00016438,2]
[383731846,1757103054507,-480.0,0.00016438,2]
[383731848,1757103054516,-555.37,0.00016438,2]
[383731850,1757103054525,-2005.54,0.00016438,2]
[383731852,1757103054534,-695.85,0.00016438,2]
[383731854,1757103054544,-641.0,0.00016438,2]
[383731856,1757103054553,-674.5,0.00016438,2]
[383731858,1757103054562,-2484.53,0.00016438,2]
[383731860,1757103054571,-1101.11,0.00016438,2]
[383731862,1757103054581,-698.74,0.00016438,2]
[383731864,1757103054590,-1021.02,0.00016438,2]
[383731866,1757103054600,-480.0,0.00016438,2]
[383731868,1757103054610,-489.39,0.00016438,2]
[383731870,1757103054619,-499.95,0.00016438,2]
[383731872,1757103054629,-751.81,0.00016438,2]
[383731874,1757103054638,-1850.07,0.00016438,2]
[383731876,1757103054648,-480.0,0.00016438,2]
[383731878,1757103054657,-480.0,0.00016438,2]
[383731880,1757103054667,-480.0,0.00016438,2]
[383731882,1757103054676,-689.34,0.00016438,2]
[383731883,1757103054685,-934.43,0.00016438,2]
[383731885,1757103054695,-2351.15,0.00016438,2]
[383731887,1757103054704,-1182.5,0.00016438,2]
[383731889,1757103054714,-598.75,0.00016438,2]
[383731891,1757103054724,-500.0,0.00016438,2]
[383731893,1757103054733,-601.57941269,0.00016451,2]
[383731895,1757103054743,-160.0,0.00016474,2]
[383731897,1757103054753,-500.0,0.00016608,2]
[383731899,1757103054763,-500.0,0.00016608,2]
[383731901,1757103054773,-1500.0,0.00016608,2]
[383731903,1757103054782,-34631.28248131,0.00016612,2]
[383731905,1757103054791,-869.60951053,0.00016613,2]
[383731907,1757103054801,-10670.0070828,0.0001663,2]
[383731909,1757103054810,-151.0,0.0001663,2]
[383731911,1757103054820,-203.635943,0.0001663,2]
[383731913,1757103054829,-203.635943,0.0001663,2]
[383731915,1757103054838,-203.635943,0.0001663,2]
[383731917,1757103054848,-1000.0,0.00016632,2]
[383731919,1757103054858,-1252.11101087,0.00016668,2]
[383731921,1757103054870,-500.0,0.00016712,2]
[383731923,1757103054882,-174.81247055,0.00016712,2]
[383731925,1757103054892,-706.16,0.00016712,2]
[383731926,1757103054902,-480.0,0.00016712,2]
[383731928,1757103054911,-482.0,0.00016712,2]
[383731930,1757103054921,-614.49,0.00016712,2]
[383731932,1757103054930,-589.91,0.00016712,2]
[383731934,1757103054941,-480.0,0.00016712,2]
[383731936,1757103054951,-695.74,0.00016712,2]
[383731938,1757103054960,-513.79,0.00016712,2]
[383731940,1757103054970,-569.37,0.00016712,2]
[383731942,1757103054980,-818.23,0.00016712,2]
[383731944,1757103054990,-1090.3,0.00016712,2]
[383731946,1757103054999,-2838.89,0.00016712,2]
[383731948,1757103055009,-1570.51,0.00016712,2]
[383731950,1757103055018,-620.07,0.00016712,2]
[383731952,1757103055028,-641.06,0.00016712,2]
[383731954,1757103055037,-480.0,0.00016712,2]
[383731956,1757103055046,-480.0,0.00016712,2]
[383731958,1757103055055,-1179.32,0.00016712,2]
[383731960,1757103055065,-633.15,0.00016712,2]
[383731962,1757103055074,-701.9,0.00016712,2]
[383731963,1757103055083,-777.67,0.00016712,2]
[383731965,1757103055093,-3459.85,0.00016712,2]
[383731967,1757103055103,-666.07,0.00016712,2]
[383731969,1757103055112,-1435.86,0.00016712,2]
[383731971,1757103055121,-687.92,0.00016712,2]
[383731973,1757103055131,-626.27,0.00016712,2]
[383731975,1757103055140,-665.9,0.00016712,2]
[383731977,1757103055149,-640.34,0.00016712,2]
[383731979,1757103055158,-790.66,0.00016712,2]